lending/lending_fUSD_20250621
["ID","MTS","AMOUNT","RATE_DAILY","PERIOD"]
[366810369,1750467078168,-490.0,0.00026301,4]
[366810370,1750467078179,-490.0,0.00026301,4]
[366810371,1750467078189,-185.85624,0.00026301,7]
[366810372,1750467078200,-490.0,0.00026301,4]
[366810373,1750467078210,-506.81,0.00026301,4]
[366810374,1750467078219,-490.0,0.00026301,4]
[366810375,1750467078229,-490.0,0.00026301,4]
[366810376,1750467078239,-490.0,0.00026301,4]
[366810377,1750467078250,-490.0,0.00026301,4]
[366810378,1750467078259,-566.3,0.00026301,4]
[366810379,1750467078270,-490.0,0.00026301,4]
[366810380,1750467078280,-490.0,0.00026301,4]
[366810381,1750467078295,-490.0,0.00026301,4]
[366810382,1750467078306,-490.0,0.00026301,4]
[366810383,1750467078318,-490.0,0.00026301,4]
[366810384,1750467078329,-490.0,0.00026301,4]
[366810385,1750467078339,-490.0,0.00026301,4]
[366810386,1750467078349,-490.0,0.00026301,4]
[366810387,1750467078359,-490.0,0.00026301,4]
[366810388,1750467078372,-490.0,0.00026301,4]
[366810389,1750467078384,-490.0,0.00026301,4]
[366810390,1750467078395,-640.8,0.00026301,4]
[366810391,1750467078406,-490.0,0.00026301,4]
[366810392,1750467078416,-490.0,0.00026301,4]
[366810393,1750467078426,-490.0,0.00026301,4]
[366810394,1750467078437,-490.0,0.00026301,4]
[366810395,1750467078448,-490.0,0.00026301,4]
[366810396,1750467078459,-490.0,0.00026301,4]
[366810397,1750467078469,-490.0,0.00026301,4]
[366810398,1750467078480,-490.0,0.00026301,4]
[366810399,1750467078491,-991.7,0.00026301,4]
[366810400,1750467078501,-490.0,0.00026301,4]
[366810401,1750467078511,-292.51848523,0.00026301,4]
[366810402,1750467078522,-490.0,0.00026301,4]
[366810403,1750467078533,-490.0,0.00026301,4]
[366810404,1750467078544,-490.0,0.00026301,4]
[366810405,1750467078554,-506.13,0.00026301,4]
[366810406,1750467078565,-589.01044765,0.00026301,4]
[366810407,1750467078574,-490.0,0.00026301,4]
[366810408,1750467078584,-490.0,0.00026301,4]
[366810409,1750467078595,-490.0,0.00026301,4]
[366810410,1750467078605,-490.0,0.00026301,4]
[366810411,1750467078616,-490.0,0.00026301,4]
[366810412,1750467078627,-490.0,0.00026301,4]
[366810413,1750467078637,-490.0,0.00026301,4]
[366810414,1750467078648,-490.0,0.00026301,4]
[366810415,1750467078658,-490.0,0.00026301,4]
[366810416,1750467078669,-490.0,0.00026301,4]
[366810417,1750467078679,-490.0,0.00026301,4]
[366810418,1750467078690,-490.0,0.00026301,4]
[366810419,1750467078701,-569.52,0.00026301,4]
[366810420,1750467078711,-490.0,0.00026301,4]
[366810421,1750467078721,-490.0,0.00026301,4]
[366810422,1750467078731,-490.0,0.00026301,4]
[366810423,1750467078741,-578.97150078,0.00026301,4]
[366810424,1750467078752,-490.0,0.00026301,4]
[366810425,1750467078763,-490.0,0.00026301,4]
[366810426,1750467078773,-828.07,0.00026301,4]
[366810427,1750467078784,-490.0,0.00026301,4]
[366810428,1750467078795,-490.0,0.00026301,4]
[366810429,1750467078806,-490.0,0.00026301,4]
[366810430,1750467078816,-490.0,0.00026301,4]
[366810431,1750467078827,-490.0,0.00026301,4]
[366810432,1750467078837,-490.0,0.00026301,4]
[366810433,1750467078848,-339.62,0.00026301,4]
[366810434,1750467078859,-490.0,0.00026301,4]
[366810435,1750467078870,-490.0,0.00026301,4]
[366810436,1750467078881,-281.46216192,0.00026301,4]
[366810437,1750467078891,-490.0,0.00026301,4]
[366810438,1750467078900,-360.48,0.00026301,4]
[366810439,1750467078910,-490.0,0.00026301,4]
[366810440,1750467078920,-490.0,0.00026301,4]
[366810441,1750467078930,-490.0,0.00026301,4]
[366810442,1750467078941,-490.0,0.00026301,4]
[366810443,1750467078951,-490.0,0.00026301,4]
[366810444,1750467078961,-529.54,0.00026301,4]
[366810445,1750467078972,-490.0,0.00026301,4]
[366810446,1750467078982,-490.0,0.00026301,4]
[366810447,1750467078993,-490.0,0.00026301,4]
[366810448,1750467079003,-627.92,0.00026301,4]
[366810449,1750467079013,-490.0,0.00026301,4]
[366810450,1750467079024,-490.0,0.00026301,4]
[366810451,1750467079035,-490.0,0.00026301,4]
[366810452,1750467079045,-490.0,0.00026301,4]
[366810453,1750467079055,-490.0,0.00026301,4]
[366810454,1750467079065,-576.36,0.00026301,4]
[366810455,1750467079075,-490.0,0.00026301,4]
[366810456,1750467079086,-490.0,0.00026301,4]
[366810457,1750467079096,-596.44708666,0.00026301,4]
[366810458,1750467079106,-490.0,0.00026301,4]
[366810459,1750467079116,-490.0,0.00026301,4]
[366810460,1750467079125,-490.0,0.00026301,4]
[366810461,1750467079136,-490.0,0.00026301,4]
[366810462,1750467079146,-638.18,0.00026301,4]
[366810463,1750467079156,-490.0,0.00026301,4]
[366810464,1750467079166,-490.0,0.00026301,4]
[366810465,1750467079178,-490.0,0.00026301,4]
[366810466,1750467079188,-518.34,0.00026301,4]
[366810467,1750467079198,-490.0,0.00026301,4]
[366810468,1750467079208,-490.0,0.00026301,4]
[366810469,1750467079218,-490.0,0.00026301,4]
[366810470,1750467079228,-490.0,0.00026301,4]
[366810471,1750467079238,-490.0,0.00026301,4]
[366810472,1750467079249,-490.0,0.00026301,4]
[366810473,1750467079259,-612.76722267,0.00026301,4]
[366810475,1750467079271,-490.0,0.00026301,4]
[366810476,1750467079281,-572.72,0.00026301,4]
[366810477,1750467079293,-600.32,0.00026301,4]
[366810478,1750467079303,-490.0,0.00026301,4]
[366810479,1750467079313,-490.0,0.00026301,4]
[366810480,1750467079324,-355.81872304,0.00026301,4]
[366810481,1750467079333,-413.03,0.00026301,4]
[366810482,1750467079343,-490.0,0.00026301,4]
[366810483,1750467079353,-490.0,0.00026301,4]
[366810484,1750467079363,-490.0,0.00026301,4]
[366810485,1750467079373,-250.0,0.00026301,4]
[366810486,1750467079384,-490.0,0.00026301,4]
[366810487,1750467079394,-490.0,0.00026301,4]
[366810488,1750467079403,-490.0,0.00026301,4]
[366810489,1750467079413,-490.0,0.00026301,4]
[366810491,1750467079423,-490.0,0.00026301,4]
[366810492,1750467079432,-693.05,0.00026301,4]
[366810493,1750467079442,-490.0,0.00026301,4]
[366810494,1750467079452,-679.07,0.00026301,4]
[366810495,1750467079462,-490.0,0.00026301,4]
[366810496,1750467079471,-490.0,0.00026301,4]
[366810497,1750467079481,-600.5,0.00026301,4]
[366810498,1750467079490,-490.0,0.00026301,4]
[366810499,1750467079500,-845.06,0.00026301,4]
[366810500,1750467079510,-490.0,0.00026301,4]
[366810501,1750467079521,-501.35,0.00026301,4]
[366810502,1750467079532,-490.0,0.00026301,4]
[366810503,1750467079543,-490.0,0.00026301,4]
[366810504,1750467079553,-490.0,0.00026301,4]
[366810505,1750467079565,-490.0,0.00026301,4]
[366810506,1750467079575,-490.0,0.00026301,4]
[366810507,1750467079586,-1011.08,0.00026301,4]
[366810508,1750467079597,-490.0,0.00026301,4]
[366810509,1750467079606,-490.0,0.00026301,4]
[366810510,1750467079616,-1710.27,0.00026301,4]
[366810511,1750467079627,-490.0,0.00026301,4]
[366810512,1750467079637,-490.0,0.00026301,4]
[366810513,1750467079648,-490.0,0.00026301,4]
[366810514,1750467079660,-490.0,0.00026301,4]
[366810515,1750467079671,-490.0,0.00026301,4]
[366810516,1750467079681,-490.0,0.00026301,4]
[366810517,1750467079693,-490.0,0.00026301,4]
[366810518,1750467079704,-490.0,0.00026301,4]
[366810519,1750467079714,-675.57,0.00026301,4]
[366810520,1750467079725,-573.37,0.00026301,4]
[366810521,1750467079737,-490.0,0.00026301,4]
[366810522,1750467079747,-1566.91,0.00026301,4]
[366810523,1750467079757,-490.0,0.00026301,4]
[366810524,1750467079767,-490.0,0.00026301,4]
[366810525,1750467079777,-490.0,0.00026301,4]
[366810526,1750467079787,-490.0,0.00026301,4]
[366810527,1750467079796,-490.0,0.00026301,4]
[366810528,1750467079806,-573.81,0.00026301,4]
[366810529,1750467079817,-490.0,0.00026301,4]
[366810530,1750467079827,-3259.78,0.00026301,4]
[366810531,1750467079837,-490.0,0.00026301,4]
[366810532,1750467079848,-490.0,0.00026301,4]
[366810533,1750467079858,-490.0,0.00026301,4]
[366810534,1750467079868,-490.0,0.00026301,4]
[366810535,1750467079879,-648.85,0.00026301,4]
[366810536,1750467079889,-1017.95,0.00026301,4]
[366810537,1750467079899,-490.0,0.00026301,4]
[366810538,1750467079909,-319.86620857,0.00026301,4]
[366810539,1750467079919,-490.0,0.00026301,4]
[366810540,1750467079928,-490.0,0.00026301,4]
[366810541,1750467079938,-1010.41,0.00026301,4]
[366810542,1750467079948,-838.54,0.00026301,4]
[366810543,1750467079958,-561.12,0.00026301,4]
[366810544,1750467079969,-490.0,0.00026301,4]
[366810545,1750467079979,-490.0,0.00026301,4]
[366810546,1750467079989,-485.07,0.00026301,4]
[366810547,1750467079999,-168.78,0.00026301,4]
[366810548,1750467080009,-490.0,0.00026301,4]
[366810549,1750467080020,-490.0,0.00026301,4]
[366810550,1750467080031,-490.0,0.00026301,4]
[366810551,1750467080040,-490.0,0.00026301,4]
[366810552,1750467080050,-7664.92,0.00026301,4]
[366810553,1750467080060,-490.0,0.00026301,4]
[366810554,1750467080069,-535.72,0.00026301,4]
[366810555,1750467080079,-490.0,0.00026301,4]
[366810556,1750467080090,-643.42,0.00026301,4]
[366810557,1750467080260,-490.0,0.00026301,4]
[366810558,1750467080289,-490.0,0.00026301,4]
[366810559,1750467080303,-490.0,0.00026301,4]
[366810560,1750467080313,-490.0,0.00026301,4]
[366810561,1750467080323,-740.37,0.00026301,4]
[366810562,1750467080332,-666.48,0.00026301,4]
[366810563,1750467080343,-1402.81,0.00026301,4]
[366810564,1750467080354,-1928.49,0.00026301,4]
[366810565,1750467080364,-490.0,0.00026301,4]
[366810566,1750467080375,-453.4,0.00026301,4]
[366810567,1750467080386,-490.0,0.00026301,4]
[366810568,1750467080396,-490.0,0.00026301,4]
[366810569,1750467080406,-875.93,0.00026301,4]
[366810570,1750467080416,-490.0,0.00026301,4]
[366810571,1750467080426,-490.0,0.00026301,4]
[366810572,1750467080435,-575.61,0.00026301,4]
[366810573,1750467080445,-2680.72,0.00026301,4]
[366810574,1750467080460,-490.0,0.00026301,4]
[366810575,1750467080470,-1148.65,0.00026301,4]
[366810576,1750467080480,-499.47,0.00026301,4]
[366810577,1750467080490,-340.58,0.00026301,4]
[366810578,1750467080500,-585.26,0.00026301,4]
[366810579,1750467080510,-506.05,0.00026301,4]
[366810580,1750467080520,-490.0,0.00026301,4]
[366810581,1750467080530,-755.96,0.00026301,4]
[366810582,1750467080540,-490.0,0.00026301,4]
[366810583,1750467080550,-5788.94,0.00026301,4]
[366810584,1750467080560,-490.0,0.00026301,4]
[366810585,1750467080573,-979.05,0.00026301,4]
[366810586,1750467080583,-1714.67,0.00026301,4]
[366810587,1750467080593,-1056.73,0.00026301,4]
[366810588,1750467080602,-703.48,0.00026301,4]
[366810589,1750467080612,-490.0,0.00026301,4]
[366810590,1750467080622,-490.0,0.00026301,4]
[366810591,1750467080632,-490.0,0.00026301,4]
[366810592,1750467080642,-490.0,0.00026301,4]
[366810593,1750467080652,-1389.72,0.00026301,4]
[366810594,1750467080663,-490.0,0.00026301,4]
[366810595,1750467080673,-490.0,0.00026301,4]
[366810596,1750467080683,-490.0,0.00026301,4]
[366810597,1750467080693,-490.0,0.00026301,4]
[366810598,1750467080704,-490.0,0.00026301,4]
[366810599,1750467080716,-778.17,0.00026301,4]
[366810600,1750467080726,-1748.79,0.00026301,4]
[366810601,1750467080736,-490.0,0.00026301,4]
[366810602,1750467080746,-490.0,0.00026301,4]
[366810603,1750467080756,-490.0,0.00026301,4]
[366810604,1750467080767,-567.41,0.00026301,4]
[366810605,1750467080778,-490.0,0.00026301,4]
[366810606,1750467080788,-1625.6,0.00026301,4]
[366810607,1750467080798,-490.0,0.00026301,4]
[366810608,1750467080808,-490.0,0.00026301,4]
[366810609,1750467080818,-490.0,0.00026301,4]
[366810610,1750467080830,-490.0,0.00026301,4]
[366810611,1750467080840,-875.48,0.00026301,4]
[366810612,1750467080850,-513.0,0.00026301,4]
[366810613,1750467080860,-2895.02,0.00026301,4]
[366810614,1750467080869,-490.0,0.00026301,4]
[366810615,1750467080880,-490.0,0.00026301,4]
[366810616,1750467080890,-490.0,0.00026301,4]
[366810617,1750467080900,-1070.55,0.00026301,4]
[366810618,1750467080911,-490.0,0.00026301,4]
[366810619,1750467080921,-490.0,0.00026301,4]
[366810620,1750467080932,-490.0,0.00026301,4]
[366810621,1750467080943,-490.0,0.00026301,4]
[366810622,1750467080953,-490.0,0.00026301,4]
[366810623,1750467080963,-1435.61,0.00026301,4]
[366810624,1750467080975,-874.16,0.00026301,4]
[366810625,1750467080985,-630.58,0.00026301,4]
[366810626,1750467080996,-490.0,0.00026301,4]
[366810627,1750467081005,-490.0,0.00026301,4]
[366810628,1750467081015,-490.0,0.00026301,4]
[366810629,1750467081025,-2562.11,0.00026301,2]
[366810630,1750467081035,-490.0,0.00026301,4]
[366810631,1750467081045,-490.0,0.00026301,4]
[366810632,1750467081055,-490.0,0.00026301,4]
[366810633,1750467081065,-490.0,0.00026301,4]
[366810634,1750467081075,-1288.18,0.00026301,4]
[366810635,1750467081085,-490.0,0.00026301,4]
[366810636,1750467081095,-490.0,0.00026301,4]
[366810637,1750467081105,-490.0,0.00026301,4]
[366810638,1750467081115,-490.0,0.00026301,4]
[366810639,1750467081125,-490.0,0.00026301,4]
[366810640,1750467081135,-817.53,0.00026301,4]
[366810641,1750467081145,-490.0,0.00026301,4]
[366810642,1750467081155,-244.15356716,0.00026301,4]
[366810643,1750467081165,-490.0,0.00026301,4]
[366810644,1750467081174,-490.0,0.00026301,4]
[366810645,1750467081184,-291.52242538,0.00026301,4]
[366810646,1750467081194,-1310.38,0.00026301,2]
[366810647,1750467081204,-490.0,0.00026301,4]
[366810648,1750467081214,-490.0,0.00026301,4]
[366810649,1750467081224,-1069.86,0.00026301,4]
[366810650,1750467081234,-490.0,0.00026301,4]
[366810651,1750467081243,-490.0,0.00026301,4]
[366810652,1750467081254,-192.12655772,0.00026301,4]
[366810653,1750467081264,-490.0,0.00026301,4]
[366810654,1750467081274,-490.0,0.00026301,4]
[366810655,1750467081285,-283.56,0.00026301,4]
[366810656,1750467081298,-490.0,0.00026301,4]
[366810657,1750467081308,-490.0,0.00026301,4]
[366810658,1750467081318,-490.0,0.00026301,4]
[366810659,1750467081328,-525.89,0.00026301,4]
[366810660,1750467081338,-490.0,0.00026301,4]
[366810661,1750467081348,-622.86,0.00026301,4]
[366810662,1750467081358,-800.28,0.00026301,4]
[366810663,1750467081368,-231.764256,0.00026318,7]
[366810664,1750467081378,-231.764256,0.00026318,7]
[366810665,1750467081387,-155.886971,0.00026318,7]
[366810666,1750467081396,-155.886971,0.00026318,7]
[366810667,1750467081406,-208.756452,0.00026318,7]
[366810668,1750467081415,-303.158107,0.00026318,7]
[366810669,1750467081425,-208.756452,0.00026318,7]
[366810670,1750467081434,-151.0,0.00026347,7]
[366810671,1750467081443,-171.52363058,0.00026356,30]
[366810672,1750467081453,-151.0,0.00026359,7]
[366810673,1750467081463,-169.551605,0.00026359,7]
[366810674,1750467081472,-169.551605,0.00026359,7]
[366810675,1750467081482,-151.0,0.00026359,7]
[366810676,1750467081491,-660.470074,0.00026359,7]
[366810677,1750467081500,-151.0,0.00026359,7]
[366810678,1750467081510,-326.462005,0.00026359,7]
[366810679,1750467081519,-326.462005,0.00026359,7]
[366810680,1750467081529,-151.0,0.00026359,7]
[366810681,1750467081539,-187.3,0.00026369,2]
[366810682,1750467081549,-500.0,0.0002637,2]
[366810683,1750467081560,-1000.0,0.0002637,2]
[366810684,1750467081569,-1000.0,0.0002637,2]
[366810685,1750467081579,-500.0,0.0002637,2]
[366810686,1750467081589,-459.88,0.00026394,120]
[366810687,1750467081598,-1406.95,0.00026399,4]
[366810688,1750467081607,-26659.42655211,0.000264,2]
[366810689,1750467081617,-387.0,0.000264,2]
[366810690,1750467081627,-54635.51290093,0.000264,2]
[366810691,1750467081636,-206.24513,0.000264,7]
[366810692,1750467081646,-206.24513,0.000264,7]
[366810693,1750467081656,-466.108384,0.000264,7]
[366810694,1750467081666,-466.108384,0.000264,7]
[366810695,1750467081675,-3322.01261887,0.000264,2]
[366810696,1750467081685,-150.0,0.00026406,2]
[366810697,1750467081695,-255.0,0.0002646,2]
[366810698,1750467081704,-500.0,0.0002647,2]
[366810699,1750467081714,-1000.0,0.0002647,2]
[366810700,1750467081724,-831.898592,0.00026481,4]
[366810701,1750467081734,-2245.766762,0.00026481,4]
[366810702,1750467081743,-1452.68655747,0.00026486,15]
[366810703,1750467081753,-831.898592,0.00026499,4]
[366810704,1750467081762,-2245.766762,0.00026499,4]
[366810705,1750467081772,-150.0,0.00026499,2]
[366810706,1750467081783,-300.0,0.000265,2]
[366810707,1750467081792,-859.52,0.000265,2]
[366810708,1750467081802,-46456.80027152,0.000265,2]
[366810709,1750467081811,-1674.38,0.000265,2]
[366810710,1750467081821,-4522.89,0.000265,2]
[366810711,1750467081831,-500.0,0.000265,2]
[366810712,1750467081841,-500.0,0.000265,2]
[366810713,1750467081850,-500.0,0.000265,2]
[366810714,1750467081861,-500.0,0.000265,2]
[366810715,1750467081872,-500.0,0.000265,2]
[366810716,1750467081883,-500.0,0.000265,2]
[366810717,1750467081892,-500.0,0.000265,2]
[366810718,1750467081903,-500.0,0.000265,2]
[366810719,1750467081915,-500.0,0.000265,2]
[366810720,1750467081924,-500.0,0.000265,2]
[366810721,1750467081933,-500.0,0.000265,2]
[366810722,1750467081942,-500.0,0.000265,2]
[366810723,1750467081952,-500.0,0.000265,2]
[366810724,1750467081961,-500.0,0.000265,2]
[366810725,1750467081970,-500.0,0.000265,2]
[366810726,1750467081979,-500.0,0.000265,2]
[366810727,1750467081989,-500.0,0.000265,2]
[366810728,1750467081998,-500.0,0.000265,2]
[366810729,1750467082009,-500.0,0.000265,2]
[366810730,1750467082019,-500.0,0.000265,2]
[366810731,1750467082028,-500.0,0.000265,2]
[366810732,1750467082037,-500.0,0.000265,2]
[366810733,1750467082047,-500.0,0.000265,2]
[366810734,1750467082056,-500.0,0.000265,2]
[366810735,1750467082065,-500.0,0.000265,2]
[366810736,1750467082075,-500.0,0.000265,2]
[366810737,1750467082085,-500.0,0.000265,2]
[366810738,1750467082094,-500.0,0.000265,2]
[366810739,1750467082104,-500.0,0.000265,2]
[366810740,1750467082114,-500.0,0.000265,2]
[366810741,1750467082123,-500.0,0.000265,2]
[366810742,1750467082133,-500.0,0.000265,2]
[366810743,1750467082142,-500.0,0.000265,2]
[366810744,1750467082151,-500.0,0.000265,2]
[366810745,1750467082160,-500.0,0.000265,2]
[366810746,1750467082170,-500.0,0.000265,2]
[366810747,1750467082179,-500.0,0.000265,2]
[366810748,1750467082188,-500.0,0.000265,2]
[366810749,1750467082198,-500.0,0.000265,2]
[366810750,1750467082207,-500.0,0.000265,2]
[366810751,1750467082216,-500.0,0.000265,2]
[366810752,1750467082225,-500.0,0.000265,2]
[366810753,1750467082235,-500.0,0.000265,2]
[366810754,1750467082244,-500.0,0.000265,2]
[366810755,1750467082253,-500.0,0.000265,2]
[366810756,1750467082262,-500.0,0.000265,2]
[366810757,1750467082272,-500.0,0.000265,2]
[366810758,1750467082282,-500.0,0.000265,2]
[366810759,1750467082294,-500.0,0.000265,2]
[366810760,1750467082304,-500.0,0.000265,2]
[366810761,1750467082314,-500.0,0.000265,2]
[366810762,1750467082325,-500.0,0.000265,2]
[366810763,1750467082334,-500.0,0.000265,2]
[366810764,1750467082345,-500.0,0.000265,2]
[366810765,1750467082354,-500.0,0.000265,2]
[366810766,1750467082364,-500.0,0.000265,2]
[366810767,1750467082374,-500.0,0.000265,2]
[366810768,1750467082383,-500.0,0.000265,2]
[366810769,1750467082393,-500.0,0.000265,2]
[366810770,1750467082402,-500.0,0.000265,2]
[366810771,1750467082411,-500.0,0.000265,2]
[366810772,1750467082421,-500.0,0.000265,2]
[366810773,1750467082431,-500.0,0.000265,2]
[366810774,1750467082441,-500.0,0.000265,2]
[366810775,1750467082451,-500.0,0.000265,2]
[366810776,1750467082460,-500.0,0.000265,2]
[366810777,1750467082470,-500.0,0.000265,2]
[366810778,1750467082480,-500.0,0.000265,2]
[366810779,1750467082489,-500.0,0.000265,2]
[366810780,1750467082499,-500.0,0.000265,2]
[366810781,1750467082509,-500.0,0.000265,2]
[366810782,1750467082519,-500.0,0.000265,2]
[366810783,1750467082528,-500.0,0.000265,2]
[366810784,1750467082538,-500.0,0.000265,2]
[366810785,1750467082548,-500.0,0.000265,2]
[366810786,1750467082558,-500.0,0.000265,2]
[366810787,1750467082568,-500.0,0.000265,2]
[366810788,1750467082578,-500.0,0.000265,2]
[366810789,1750467082587,-500.0,0.000265,2]
[366810790,1750467082597,-500.0,0.000265,2]
[366810791,1750467082606,-500.0,0.000265,2]
[366810792,1750467082616,-500.0,0.000265,2]
[366810793,1750467082625,-500.0,0.000265,2]
[366810794,1750467082636,-500.0,0.000265,2]
[366810795,1750467082645,-500.0,0.000265,2]
[366810796,1750467082655,-500.0,0.000265,2]
[366810797,1750467082664,-500.0,0.000265,2]
[366810798,1750467082674,-500.0,0.000265,2]
[366810799,1750467082684,-500.0,0.000265,2]
[366810800,1750467082693,-500.0,0.000265,2]
[366810801,1750467082703,-500.0,0.000265,2]
[366810802,1750467082712,-500.0,0.000265,2]
[366810803,1750467082721,-500.0,0.000265,2]
[366810804,1750467082731,-500.0,0.000265,2]
[366810805,1750467082740,-500.0,0.000265,2]
[366810806,1750467082750,-500.0,0.000265,2]
[366810807,1750467082759,-500.0,0.000265,2]
[366810808,1750467082769,-500.0,0.000265,2]
[366810809,1750467082778,-500.0,0.000265,2]
[366810810,1750467082788,-500.0,0.000265,2]
[366810811,1750467082797,-500.0,0.000265,2]
[366810812,1750467082806,-500.0,0.000265,2]
[366810813,1750467082815,-500.0,0.000265,2]
[366810814,1750467082825,-500.0,0.000265,2]
[366810815,1750467082834,-500.0,0.000265,2]
[366810816,1750467082845,-500.0,0.000265,2]
[366810817,1750467082854,-500.0,0.000265,2]
[366810818,1750467082864,-500.0,0.000265,2]
[366810819,1750467082873,-500.0,0.000265,2]
[366810820,1750467082884,-500.0,0.000265,2]
[366810821,1750467082893,-2168.4087,0.000265,2]
[366810822,1750467082903,-1406.95,0.00026518,4]
[366810823,1750467082912,-1406.95,0.00026518,4]
[366810824,1750467082922,-1406.95,0.00026518,4]
[366810825,1750467082931,-1406.95,0.00026518,4]
[366810826,1750467082940,-1406.95265072,0.00026518,4]
[366810827,1750467082950,-2000.0,0.00026519,2]
[366810828,1750467082959,-2000.0,0.00026519,2]
[366810829,1750467082968,-168.0,0.00026528,2]
[366810830,1750467082978,-666.0,0.00026556,2]
[366810831,1750467082987,-151.0,0.00026557,7]
[366810832,1750467082997,-231.764256,0.00026557,7]
[366810833,1750467083007,-231.764256,0.00026557,7]
[366810834,1750467083017,-155.886971,0.00026557,7]
[366810835,1750467083026,-155.886971,0.00026557,7]
[366810836,1750467083036,-208.756452,0.00026557,7]
[366810837,1750467083046,-303.158107,0.00026557,7]
[366810838,1750467083056,-208.756452,0.00026557,7]
[366810839,1750467083066,-165493.5243186,0.00026557,2]
[366810840,1750467083076,-266.0,0.00026565,2]
[366810841,1750467083086,-500.0,0.0002657,2]
[366810842,1750467083095,-1000.0,0.0002657,2]
[366810843,1750467083104,-254.117713,0.00026575,7]
[366810844,1750467083114,-490.0,0.00026575,4]
[366810845,1750467083124,-490.0,0.00026575,4]
[366810846,1750467083133,-320.9,0.00026575,4]
[366810847,1750467083143,-490.0,0.00026575,4]
[366810848,1750467083152,-332.04598628,0.00026575,4]
[366810849,1750467083162,-490.0,0.00026575,4]
[366810850,1750467083172,-490.0,0.00026575,4]
[366810851,1750467083181,-490.0,0.00026575,4]
[366810852,1750467083190,-490.0,0.00026575,4]
[366810853,1750467083200,-490.0,0.00026575,4]
[366810854,1750467083211,-490.0,0.00026575,4]
[366810855,1750467083223,-570.53250552,0.00026575,4]
[366810856,1750467083235,-490.0,0.00026575,4]
[366810857,1750467083247,-490.0,0.00026575,4]
[366810858,1750467083257,-490.0,0.00026575,4]
[366810859,1750467083267,-490.0,0.00026575,4]
[366810860,1750467083278,-490.0,0.00026575,4]
[366810861,1750467083290,-499.03,0.00026575,4]
[366810862,1750467083450,-490.0,0.00026575,4]
[366810863,1750467083477,-490.0,0.00026575,4]
[366810864,1750467083488,-490.0,0.00026575,4]
[366810865,1750467083498,-490.0,0.00026575,4]
[366810866,1750467083508,-490.0,0.00026575,4]
[366810867,1750467083518,-490.0,0.00026575,4]
[366810868,1750467083529,-490.0,0.00026575,4]
[366810869,1750467083539,-490.0,0.00026575,4]
[366810870,1750467083549,-490.0,0.00026575,4]